[Event "*** SCC Grand Prix: Titled Tuesday Blitz"]
[Site "Chess.com"]
[Date "2020.07.07"]
[Round "3"]
[White "TokChess"]
[Black "Flawless_Fighter"]
[Result "1-0"]
[WhiteElo "2409"]
[BlackElo "2570"]
[TimeControl "180+1"]
[EndTime "10:29:31 PDT"]
[Termination "TokChess won by checkmate"]

1. Nf3 {[%clk 0:03:00.1]} 1... Nf6 {[%clk 0:03:00]} 2. g3 {[%clk 0:03:00.2]}
2... d5 {[%clk 0:03:00.6]} 3. Bg2 {[%clk 0:03:00.4]} 3... c5 {[%clk 0:03:00.7]}
4. O-O {[%clk 0:03:00.9]} 4... Nc6 {[%clk 0:03:01.3]} 5. d4 {[%clk 0:03:01.2]}
5... cxd4 {[%clk 0:02:58.1]} 6. Nxd4 {[%clk 0:03:00.9]} 6... e5 {[%clk
0:02:58.6]} 7. Nxc6 {[%clk 0:03:00.9]} 7... bxc6 {[%clk 0:02:59.5]} 8. c4 {[%clk
0:03:01]} 8... Be6 {[%clk 0:02:57.5]} 9. Bg5 {[%clk 0:02:51.9]} 9... Be7 {[%clk
0:02:52.6]} 10. Nc3 {[%clk 0:02:49.1]} 10... e4 {[%clk 0:02:53]} 11. cxd5 {[%clk
0:02:45.5]} 11... cxd5 {[%clk 0:02:52.3]} 12. Qa4+ {[%clk 0:02:45.3]} 12... Qd7
{[%clk 0:02:49.5]} 13. Qxd7+ {[%clk 0:02:41.7]} 13... Nxd7 {[%clk 0:02:44.4]}
14. Bxe7 {[%clk 0:02:39.7]} 14... Kxe7 {[%clk 0:02:45.3]} 15. Rfd1 {[%clk
0:02:34.7]} 15... Nb6 {[%clk 0:02:45.6]} 16. e3 {[%clk 0:02:26.8]} 16... Rac8
{[%clk 0:02:37.1]} 17. Rac1 {[%clk 0:02:25.8]} 17... Rhd8 {[%clk 0:02:28.8]} 18.
b3 {[%clk 0:02:22.1]} 18... a6 {[%clk 0:02:20]} 19. Bf1 {[%clk 0:02:14.5]} 19...
a5 {[%clk 0:02:18.4]} 20. Nb5 {[%clk 0:02:10.7]} 20... Bg4 {[%clk 0:02:16.9]}
21. Re1 {[%clk 0:02:07.4]} 21... a4 {[%clk 0:02:11.3]} 22. Nd4 {[%clk
0:02:05.5]} 22... Kd6 {[%clk 0:01:57.3]} 23. h3 {[%clk 0:02:04.7]} 23... Bd7
{[%clk 0:01:55.4]} 24. Ba6 {[%clk 0:01:55.6]} 24... Ra8 {[%clk 0:01:54.5]} 25.
Bb5 {[%clk 0:01:49]} 25... Rdc8 {[%clk 0:01:52.6]} 26. Bxd7 {[%clk 0:01:47.5]}
26... Kxd7 {[%clk 0:01:52.5]} 27. g4 {[%clk 0:01:40.7]} 27... g6 {[%clk
0:01:50]} 28. Kg2 {[%clk 0:01:40.4]} 28... Kd6 {[%clk 0:01:42.1]} 29. Kg3 {[%clk
0:01:39.3]} 29... h6 {[%clk 0:01:40.7]} 30. h4 {[%clk 0:01:38.3]} 30... Nd7
{[%clk 0:01:37.7]} 31. bxa4 {[%clk 0:01:34.4]} 31... Rxc1 {[%clk 0:01:35.6]} 32.
Rxc1 {[%clk 0:01:34.3]} 32... Rxa4 {[%clk 0:01:36.3]} 33. Rc6+ {[%clk 0:01:33]}
33... Ke7 {[%clk 0:01:35.1]} 34. Rc2 {[%clk 0:01:25.1]} 34... Ne5 {[%clk
0:01:35.3]} 35. Rc5 {[%clk 0:01:13.9]} 35... Kd6 {[%clk 0:01:30.1]} 36. Rc2
{[%clk 0:01:13.6]} 36... Nd3 {[%clk 0:01:18.2]} 37. h5 {[%clk 0:01:10.8]} 37...
gxh5 {[%clk 0:01:02.9]} 38. gxh5 {[%clk 0:01:11.2]} 38... Ke5 {[%clk 0:01:03.5]}
39. Rc6 {[%clk 0:00:56]} 39... Rxa2 {[%clk 0:00:56.2]} 40. Rxh6 {[%clk
0:00:45.8]} 40... Nxf2 {[%clk 0:00:55.3]} 41. Nc6+ {[%clk 0:00:44.2]} 41... Kf5
{[%clk 0:00:53.4]} 42. Rd6 {[%clk 0:00:40.5]} 42... Nh1+ {[%clk 0:00:49.6]} 43.
Kh3 {[%clk 0:00:40.4]} 43... Nf2+ {[%clk 0:00:37.5]} 44. Kh4 {[%clk 0:00:40.4]}
44... Nd3 {[%clk 0:00:23.8]} 45. Rxd5+ {[%clk 0:00:34.8]} 45... Ke6 {[%clk
0:00:24]} 46. Rd4 {[%clk 0:00:31.4]} 46... Rh2+ {[%clk 0:00:21.7]} 47. Kg4
{[%clk 0:00:30.5]} 47... f5+ {[%clk 0:00:19.4]} 48. Kg3 {[%clk 0:00:27.4]} 48...
Rxh5 {[%clk 0:00:19.1]} 49. Nd8+ {[%clk 0:00:25.2]} 49... Ke7 {[%clk 0:00:18.4]}
50. Nc6+ {[%clk 0:00:25.1]} 50... Ke6 {[%clk 0:00:17.8]} 51. Nd8+ {[%clk
0:00:25.4]} 51... Kf6 {[%clk 0:00:18.5]} 52. Rd6+ {[%clk 0:00:24]} 52... Ke5
{[%clk 0:00:16.1]} 53. Nf7# {[%clk 0:00:20.6]} 1-0

[Event "*** SCC Grand Prix: Titled Tuesday Blitz"]
[Site "Chess.com"]
[Date "2020.07.07"]
[Round "3"]
[White "Maghalashvili"]
[Black "ace_mar"]
[Result "1-0"]
[WhiteElo "2757"]
[BlackElo "2436"]
[TimeControl "180+1"]
[EndTime "10:29:33 PDT"]
[Termination "Maghalashvili won by resignation"]

1. Nf3 {[%clk 0:02:28.9]} 1... d5 {[%clk 0:02:59.7]} 2. g3 {[%clk 0:02:29.8]}
2... Bg4 {[%clk 0:02:59.3]} 3. Bg2 {[%clk 0:02:29.9]} 3... Nd7 {[%clk
0:02:59.3]} 4. d4 {[%clk 0:02:29.5]} 4... e6 {[%clk 0:02:57]} 5. O-O {[%clk
0:02:29.9]} 5... Ngf6 {[%clk 0:02:56.7]} 6. c4 {[%clk 0:02:30.8]} 6... c6 {[%clk
0:02:55.2]} 7. Nc3 {[%clk 0:02:31.3]} 7... Be7 {[%clk 0:02:52.7]} 8. b3 {[%clk
0:02:28.9]} 8... O-O {[%clk 0:02:51.8]} 9. Bb2 {[%clk 0:02:29.1]} 9... Rc8
{[%clk 0:02:47.4]} 10. Rc1 {[%clk 0:02:27.9]} 10... Re8 {[%clk 0:02:45.4]} 11.
Re1 {[%clk 0:02:27.4]} 11... Bd6 {[%clk 0:02:42.6]} 12. e4 {[%clk 0:02:26.5]}
12... dxe4 {[%clk 0:02:42.8]} 13. Nxe4 {[%clk 0:02:27.4]} 13... Nxe4 {[%clk
0:02:43.4]} 14. Rxe4 {[%clk 0:02:27.5]} 14... Nf6 {[%clk 0:02:43.9]} 15. Re1
{[%clk 0:02:27.8]} 15... Qc7 {[%clk 0:02:42.2]} 16. h3 {[%clk 0:02:27.2]} 16...
Bh5 {[%clk 0:02:41.9]} 17. Qc2 {[%clk 0:02:19.5]} 17... c5 {[%clk 0:02:37]} 18.
Ne5 {[%clk 0:02:15.1]} 18... cxd4 {[%clk 0:02:30.6]} 19. Bxd4 {[%clk 0:02:14.3]}
19... Red8 {[%clk 0:02:04.2]} 20. Qb2 {[%clk 0:01:46.6]} 20... Ne8 {[%clk
0:01:47.7]} 21. b4 {[%clk 0:01:28.9]} 21... f6 {[%clk 0:01:46.4]} 22. c5 {[%clk
0:01:22.8]} 22... Be7 {[%clk 0:01:29.7]} 23. Nc4 {[%clk 0:01:14.9]} 23... e5
{[%clk 0:01:29.8]} 24. Be3 {[%clk 0:01:07.7]} 24... Bf7 {[%clk 0:01:29.3]} 25.
a4 {[%clk 0:01:04.2]} 25... Bd5 {[%clk 0:01:18]} 26. Bxd5+ {[%clk 0:01:03.1]}
26... Rxd5 {[%clk 0:01:18.9]} 27. Qc2 {[%clk 0:01:03]} 27... Rcd8 {[%clk
0:01:15.5]} 28. Red1 {[%clk 0:01:03.1]} 28... Qd7 {[%clk 0:01:13.3]} 29. Rxd5
{[%clk 0:01:02.5]} 29... Qxd5 {[%clk 0:01:14.2]} 30. Na5 {[%clk 0:01:00.5]}
30... Nc7 {[%clk 0:00:50.8]} 31. c6 {[%clk 0:01:00.3]} 31... b6 {[%clk
0:00:26.3]} 32. Nb7 {[%clk 0:00:58.4]} 32... Rc8 {[%clk 0:00:26.3]} 33. b5
{[%clk 0:00:55.9]} 33... Ne6 {[%clk 0:00:25.8]} 34. Rd1 {[%clk 0:00:54.5]} 34...
Nd4 {[%clk 0:00:23.1]} 35. Bxd4 {[%clk 0:00:53.7]} 35... exd4 {[%clk 0:00:24]}
36. Qd3 {[%clk 0:00:48.2]} 36... Bc5 {[%clk 0:00:23.4]} 37. Re1 {[%clk
0:00:44.6]} 37... Kf7 {[%clk 0:00:17.7]} 38. a5 {[%clk 0:00:39.7]} 38... bxa5
{[%clk 0:00:12.3]} 39. Qxh7 {[%clk 0:00:39.5]} 39... d3 {[%clk 0:00:08.1]} 40.
Nxc5 {[%clk 0:00:39.2]} 40... Qxc5 {[%clk 0:00:09]} 41. Qxd3 {[%clk 0:00:38.5]}
41... Rc7 {[%clk 0:00:07.4]} 42. Rd1 {[%clk 0:00:32.7]} 42... a4 {[%clk
0:00:05.1]} 43. Ra1 {[%clk 0:00:32.2]} 43... Qe5 {[%clk 0:00:02.2]} 44. Rxa4
{[%clk 0:00:30.7]} 44... Qe1+ {[%clk 0:00:02.7]} 45. Kg2 {[%clk 0:00:30.7]}
45... Qe5 {[%clk 0:00:03.2]} 46. Re4 {[%clk 0:00:29.8]} 46... Qc5 {[%clk
0:00:02.7]} 47. Rd4 {[%clk 0:00:28]} 47... a6 {[%clk 0:00:01.9]} 48. Rd7+ {[%clk
0:00:27.7]} 48... Rxd7 {[%clk 0:00:02.3]} 49. cxd7 {[%clk 0:00:28.3]} 1-0

[Event "*** SCC Grand Prix: Titled Tuesday Blitz"]
[Site "Chess.com"]
[Date "2020.07.07"]
[Round "3"]
[White "abykhovsky"]
[Black "LyonBeast"]
[Result "0-1"]
[WhiteElo "2687"]
[BlackElo "3031"]
[TimeControl "180+1"]
[EndTime "10:29:34 PDT"]
[Termination "LyonBeast won by resignation"]

1. d4 {[%clk 0:03:00.9]} 1... d5 {[%clk 0:02:53.4]} 2. Nf3 {[%clk 0:03:00.9]}
2... Nf6 {[%clk 0:02:50.5]} 3. c4 {[%clk 0:03:01.8]} 3... c6 {[%clk 0:02:49.7]}
4. Nc3 {[%clk 0:03:01.9]} 4... e6 {[%clk 0:02:48.2]} 5. Bg5 {[%clk 0:03:00.9]}
5... Nbd7 {[%clk 0:02:47.8]} 6. e3 {[%clk 0:03:00.5]} 6... Qa5 {[%clk
0:02:47.1]} 7. cxd5 {[%clk 0:03:00.1]} 7... Nxd5 {[%clk 0:02:46.7]} 8. Rc1
{[%clk 0:02:59.5]} 8... Bb4 {[%clk 0:02:36.4]} 9. a3 {[%clk 0:02:58.1]} 9...
Bxc3+ {[%clk 0:02:30.5]} 10. bxc3 {[%clk 0:02:55.9]} 10... b6 {[%clk 0:02:29]}
11. Qd2 {[%clk 0:02:49.9]} 11... h6 {[%clk 0:02:18]} 12. Bh4 {[%clk 0:02:47.8]}
12... c5 {[%clk 0:02:18.2]} 13. c4 {[%clk 0:02:23.4]} 13... Qxd2+ {[%clk
0:02:09.5]} 14. Nxd2 {[%clk 0:02:24.3]} 14... Ne7 {[%clk 0:02:09.6]} 15. f3
{[%clk 0:02:22]} 15... Bb7 {[%clk 0:02:04.4]} 16. Bd3 {[%clk 0:02:15.1]} 16...
f5 {[%clk 0:01:55.7]} 17. O-O {[%clk 0:02:05]} 17... Kf7 {[%clk 0:01:45.2]} 18.
Rfd1 {[%clk 0:01:43]} 18... Rac8 {[%clk 0:01:41.7]} 19. h3 {[%clk 0:01:31.7]}
19... g5 {[%clk 0:01:35.3]} 20. Bf2 {[%clk 0:01:24.4]} 20... h5 {[%clk
0:01:24.7]} 21. a4 {[%clk 0:01:15.1]} 21... g4 {[%clk 0:01:03.6]} 22. Kh2 {[%clk
0:00:55.6]} 22... cxd4 {[%clk 0:00:55]} 23. exd4 {[%clk 0:00:54.5]} 23... f4
{[%clk 0:00:55.5]} 24. Bg1 {[%clk 0:00:45.3]} 24... Nf6 {[%clk 0:00:51.7]} 25.
a5 {[%clk 0:00:43]} 25... gxh3 {[%clk 0:00:37.2]} 26. Kxh3 {[%clk 0:00:39.1]}
26... Rcg8 {[%clk 0:00:37.1]} 27. Kh2 {[%clk 0:00:30.3]} 27... Ng4+ {[%clk
0:00:36.5]} 28. Kh1 {[%clk 0:00:29.8]} 28... h4 {[%clk 0:00:30.3]} 29. fxg4
{[%clk 0:00:23.9]} 29... h3 {[%clk 0:00:29.6]} 30. Bh2 {[%clk 0:00:23.3]} 30...
Rxg4 {[%clk 0:00:27.7]} 31. Be4 {[%clk 0:00:21.7]} 31... hxg2+ {[%clk
0:00:22.3]} 32. Kg1 {[%clk 0:00:21.5]} 32... Bxe4 {[%clk 0:00:23.2]} 33. Nxe4
{[%clk 0:00:21.3]} 33... Nf5 {[%clk 0:00:24.1]} 34. Rc2 {[%clk 0:00:18.7]} 34...
f3 {[%clk 0:00:22.6]} 35. Rf2 {[%clk 0:00:18]} 35... Rxe4 {[%clk 0:00:21.7]} 36.
Rxf3 {[%clk 0:00:18.2]} 36... Reh4 {[%clk 0:00:22.1]} 37. Be5 {[%clk 0:00:12.2]}
37... Rg8 {[%clk 0:00:22.4]} 38. Kf2 {[%clk 0:00:10.9]} 38... bxa5 {[%clk
0:00:21.4]} 39. Rg1 {[%clk 0:00:10.2]} 39... Rhg4 {[%clk 0:00:20.6]} 40. Rb3
{[%clk 0:00:09]} 40... Nxd4 {[%clk 0:00:19.6]} 41. Rb7+ {[%clk 0:00:09]} 41...
Kg6 {[%clk 0:00:19.7]} 42. Bxd4 {[%clk 0:00:07]} 42... Rf8+ {[%clk 0:00:20]} 43.
Ke3 {[%clk 0:00:06.4]} 43... Rf1 {[%clk 0:00:19.4]} 44. Ke2 {[%clk 0:00:04.6]}
44... Rff4 {[%clk 0:00:19.4]} 45. Bf2 {[%clk 0:00:03.8]} 45... Rxc4 {[%clk
0:00:19]} 46. Rb2 {[%clk 0:00:04.3]} 46... a4 {[%clk 0:00:19.9]} 47. Rd2 {[%clk
0:00:04.8]} 47... a6 {[%clk 0:00:20.3]} 48. Be3 {[%clk 0:00:04.9]} 48... Kf5
{[%clk 0:00:20]} 49. Kf2 {[%clk 0:00:05.2]} 49... Ke4 {[%clk 0:00:20]} 50. Re2
{[%clk 0:00:06.1]} 50... Kd3 {[%clk 0:00:20.1]} 51. Rxg2 {[%clk 0:00:05.7]} 0-1

[Event "*** SCC Grand Prix: Titled Tuesday Blitz"]
[Site "Chess.com"]
[Date "2020.07.07"]
[Round "3"]
[White "Bodnar_Mykola"]
[Black "BlueWizzard"]
[Result "1-0"]
[WhiteElo "2454"]
[BlackElo "2751"]
[TimeControl "180+1"]
[EndTime "10:29:34 PDT"]
[Termination "Bodnar_Mykola won on time"]

1. e4 {[%clk 0:03:00.9]} 1... c6 {[%clk 0:03:00.9]} 2. d4 {[%clk 0:03:00.4]}
2... g6 {[%clk 0:03:01.8]} 3. Nf3 {[%clk 0:02:57.6]} 3... Bg7 {[%clk 0:03:01.4]}
4. Bd3 {[%clk 0:02:55.7]} 4... d5 {[%clk 0:03:00.5]} 5. Nc3 {[%clk 0:02:52.1]}
5... Bg4 {[%clk 0:02:58.8]} 6. e5 {[%clk 0:02:40.9]} 6... Qb6 {[%clk 0:02:56.5]}
7. Be2 {[%clk 0:02:29.7]} 7... Nh6 {[%clk 0:02:53.6]} 8. O-O {[%clk 0:02:10.6]}
8... Nf5 {[%clk 0:02:52.5]} 9. Na4 {[%clk 0:02:01.4]} 9... Qa5 {[%clk
0:02:46.7]} 10. c3 {[%clk 0:02:01.2]} 10... e6 {[%clk 0:02:41.4]} 11. b4 {[%clk
0:01:52.5]} 11... Qc7 {[%clk 0:02:41]} 12. h3 {[%clk 0:01:52.5]} 12... Bxf3
{[%clk 0:02:41]} 13. Bxf3 {[%clk 0:01:53.4]} 13... Nd7 {[%clk 0:02:39.9]} 14.
Nc5 {[%clk 0:01:46.4]} 14... a5 {[%clk 0:02:27.8]} 15. Nxd7 {[%clk 0:01:24.6]}
15... Qxd7 {[%clk 0:02:28.7]} 16. a4 {[%clk 0:01:12.2]} 16... axb4 {[%clk
0:02:23.8]} 17. cxb4 {[%clk 0:01:13.1]} 17... O-O {[%clk 0:02:21.9]} 18. Be2
{[%clk 0:01:06.8]} 18... b6 {[%clk 0:02:14.6]} 19. g4 {[%clk 0:01:02.5]} 19...
Ne7 {[%clk 0:02:13.7]} 20. Be3 {[%clk 0:00:48]} 20... f6 {[%clk 0:02:05.1]} 21.
exf6 {[%clk 0:00:46.7]} 21... Bxf6 {[%clk 0:02:02.8]} 22. Qd2 {[%clk 0:00:43.3]}
22... Ra7 {[%clk 0:01:59.1]} 23. a5 {[%clk 0:00:42.2]} 23... Rfa8 {[%clk
0:01:55.3]} 24. Ra2 {[%clk 0:00:30.9]} 24... bxa5 {[%clk 0:01:35.7]} 25. bxa5
{[%clk 0:00:31.8]} 25... Nc8 {[%clk 0:01:36]} 26. a6 {[%clk 0:00:29.9]} 26...
Nd6 {[%clk 0:01:35.5]} 27. Rb1 {[%clk 0:00:28.1]} 27... Nc4 {[%clk 0:01:26.1]}
28. Bxc4 {[%clk 0:00:27.8]} 28... dxc4 {[%clk 0:01:27]} 29. Qc3 {[%clk
0:00:20.6]} 29... Qd5 {[%clk 0:01:17.4]} 30. Ra5 {[%clk 0:00:18.5]} 30... c5
{[%clk 0:01:14.4]} 31. Qc2 {[%clk 0:00:12.4]} 31... Qf3 {[%clk 0:01:05.2]} 32.
Qxc4 {[%clk 0:00:10.3]} 32... cxd4 {[%clk 0:00:56.9]} 33. Qxe6+ {[%clk
0:00:10.3]} 33... Kg7 {[%clk 0:00:56.2]} 34. g5 {[%clk 0:00:09.1]} 34... dxe3
{[%clk 0:00:48.9]} 35. gxf6+ {[%clk 0:00:08.9]} 35... Qxf6 {[%clk 0:00:47.1]}
36. Qxe3 {[%clk 0:00:08.5]} 36... Qd8 {[%clk 0:00:28]} 37. Rb6 {[%clk
0:00:04.4]} 37... Rd7 {[%clk 0:00:24.9]} 38. Rab5 {[%clk 0:00:03.3]} 38... Rc8
{[%clk 0:00:18.3]} 39. Kg2 {[%clk 0:00:03.3]} 39... Rd3 {[%clk 0:00:13.4]} 40.
Rb7+ {[%clk 0:00:03.6]} 40... Rd7 {[%clk 0:00:02.1]} 41. Rxd7+ {[%clk
0:00:03.6]} 41... Qxd7 {[%clk 0:00:02.1]} 42. Rb7 {[%clk 0:00:04.5]} 42... Rc7
{[%clk 0:00:03]} 43. Qe5+ {[%clk 0:00:05]} 1-0

[Event "*** SCC Grand Prix: Titled Tuesday Blitz"]
[Site "Chess.com"]
[Date "2020.07.07"]
[Round "3"]
[White "GadimbayliA"]
[Black "volcanoexplorer"]
[Result "1-0"]
[WhiteElo "2897"]
[BlackElo "2584"]
[TimeControl "180+1"]
[EndTime "10:29:36 PDT"]
[Termination "GadimbayliA won by checkmate"]

1. e4 {[%clk 0:03:00.9]} 1... e5 {[%clk 0:03:00.1]} 2. Nf3 {[%clk 0:03:01]} 2...
Nc6 {[%clk 0:03:00.6]} 3. Nc3 {[%clk 0:03:01.6]} 3... Nf6 {[%clk 0:03:00.9]} 4.
d4 {[%clk 0:03:02.2]} 4... exd4 {[%clk 0:02:58.8]} 5. Nxd4 {[%clk 0:03:03.1]}
5... d6 {[%clk 0:02:47.7]} 6. Bc4 {[%clk 0:03:00.5]} 6... Be7 {[%clk 0:02:47.6]}
7. O-O {[%clk 0:03:00.4]} 7... O-O {[%clk 0:02:47.6]} 8. Nxc6 {[%clk 0:03:00.9]}
8... bxc6 {[%clk 0:02:48.2]} 9. Re1 {[%clk 0:03:01.4]} 9... Be6 {[%clk
0:02:46.8]} 10. Bxe6 {[%clk 0:03:00.3]} 10... fxe6 {[%clk 0:02:47.7]} 11. e5
{[%clk 0:03:00.8]} 11... Nd5 {[%clk 0:02:19.4]} 12. Qg4 {[%clk 0:02:40.3]} 12...
dxe5 {[%clk 0:01:56]} 13. Qxe6+ {[%clk 0:02:36.1]} 13... Kh8 {[%clk 0:01:55.8]}
14. Nxd5 {[%clk 0:02:32.6]} 14... cxd5 {[%clk 0:01:56.7]} 15. Qxe5 {[%clk
0:02:32.9]} 15... Bd6 {[%clk 0:01:45.2]} 16. Qg5 {[%clk 0:02:23.7]} 16... Qb8
{[%clk 0:01:37.8]} 17. b3 {[%clk 0:02:05]} 17... c6 {[%clk 0:01:28]} 18. Bb2
{[%clk 0:01:47.5]} 18... Qc7 {[%clk 0:01:10.5]} 19. Be5 {[%clk 0:01:35.4]} 19...
Bxe5 {[%clk 0:01:04]} 20. Rxe5 {[%clk 0:01:36.3]} 20... Qf7 {[%clk 0:01:00]} 21.
f3 {[%clk 0:01:21.5]} 21... h6 {[%clk 0:00:58.2]} 22. Qe3 {[%clk 0:01:20.8]}
22... Qg6 {[%clk 0:00:53.9]} 23. Qd3 {[%clk 0:01:03.7]} 23... Qf7 {[%clk
0:00:53.9]} 24. Rae1 {[%clk 0:01:03.1]} 24... Rae8 {[%clk 0:00:53.7]} 25. Qe3
{[%clk 0:01:03.1]} 25... Rxe5 {[%clk 0:00:50.9]} 26. Qxe5 {[%clk 0:01:04]} 26...
Qg6 {[%clk 0:00:50]} 27. Re2 {[%clk 0:01:04.2]} 27... Kh7 {[%clk 0:00:47.5]} 28.
Kf2 {[%clk 0:00:55.9]} 28... Rf5 {[%clk 0:00:45.3]} 29. Qe6 {[%clk 0:00:54.4]}
29... Rf6 {[%clk 0:00:45.1]} 30. Qe5 {[%clk 0:00:51.6]} 30... Rf5 {[%clk
0:00:45]} 31. Qe8 {[%clk 0:00:51.8]} 31... Rf7 {[%clk 0:00:29.3]} 32. h3 {[%clk
0:00:37.1]} 32... Qf6 {[%clk 0:00:20.5]} 33. Qe3 {[%clk 0:00:35.9]} 33... Qh4+
{[%clk 0:00:17.6]} 34. Kg1 {[%clk 0:00:35.6]} 34... Qf6 {[%clk 0:00:17.6]} 35.
Qc5 {[%clk 0:00:31.1]} 35... Qa1+ {[%clk 0:00:16.3]} 36. Kh2 {[%clk 0:00:30.8]}
36... Qf6 {[%clk 0:00:17.1]} 37. Qe3 {[%clk 0:00:29.3]} 37... Qd6+ {[%clk
0:00:13.5]} 38. Qe5 {[%clk 0:00:28.9]} 38... Qg6 {[%clk 0:00:13.3]} 39. Qe6
{[%clk 0:00:27.8]} 39... Rf6 {[%clk 0:00:13.2]} 40. Qg4 {[%clk 0:00:28.1]} 40...
Qf7 {[%clk 0:00:11.2]} 41. Qc8 {[%clk 0:00:27.2]} 41... Rg6 {[%clk 0:00:05.7]}
42. Qb8 {[%clk 0:00:24.3]} 42... Rf6 {[%clk 0:00:04.9]} 43. Re8 {[%clk
0:00:23.6]} 43... d4 {[%clk 0:00:02]} 44. Rh8+ {[%clk 0:00:22.2]} 44... Kg6
{[%clk 0:00:02.7]} 45. Qg3+ {[%clk 0:00:22.5]} 45... Kf5 {[%clk 0:00:02.3]} 46.
Qg4+ {[%clk 0:00:22.8]} 46... Ke5 {[%clk 0:00:02.4]} 47. Qe4+ {[%clk 0:00:23]}
47... Kd6 {[%clk 0:00:02.1]} 48. Qxd4+ {[%clk 0:00:23.4]} 48... Kc7 {[%clk
0:00:01.5]} 49. Qxa7+ {[%clk 0:00:23]} 49... Kd6 {[%clk 0:00:01.5]} 50. Rd8+
{[%clk 0:00:23.2]} 50... Ke5 {[%clk 0:00:01.1]} 51. Qe3+ {[%clk 0:00:22.7]}
51... Kf5 {[%clk 0:00:01.7]} 52. Qe4+ {[%clk 0:00:23.4]} 52... Kg5 {[%clk
0:00:01.8]} 53. Qg4# {[%clk 0:00:24.3]} 1-0

[Event "*** SCC Grand Prix: Titled Tuesday Blitz"]
[Site "Chess.com"]
[Date "2020.07.07"]
[Round "3"]
[White "Falia-p"]
[Black "NarminSoyunlu"]
[Result "1-0"]
[WhiteElo "2312"]
[BlackElo "2077"]
[TimeControl "180+1"]
[EndTime "10:29:36 PDT"]
[Termination "Falia-p won by checkmate"]

1. e4 {[%clk 0:03:00.9]} 1... e5 {[%clk 0:02:59.1]} 2. Nf3 {[%clk 0:03:00.9]}
2... Nc6 {[%clk 0:02:59.7]} 3. Bb5 {[%clk 0:03:00.5]} 3... a6 {[%clk 0:02:58.8]}
4. Ba4 {[%clk 0:03:00.5]} 4... Nf6 {[%clk 0:02:58]} 5. O-O {[%clk 0:03:00.6]}
5... Be7 {[%clk 0:02:56.9]} 6. d3 {[%clk 0:02:53.7]} 6... b5 {[%clk 0:02:51.4]}
7. Bb3 {[%clk 0:02:53.6]} 7... d6 {[%clk 0:02:52]} 8. a3 {[%clk 0:02:53.2]} 8...
O-O {[%clk 0:02:48.9]} 9. Nc3 {[%clk 0:02:52.5]} 9... Na5 {[%clk 0:02:37.4]} 10.
Ba2 {[%clk 0:02:49.9]} 10... c5 {[%clk 0:02:36.8]} 11. h3 {[%clk 0:02:49.9]}
11... Bb7 {[%clk 0:02:34.7]} 12. Bg5 {[%clk 0:02:48.9]} 12... h6 {[%clk
0:02:33.4]} 13. Bxf6 {[%clk 0:02:48.9]} 13... Bxf6 {[%clk 0:02:33.9]} 14. Bd5
{[%clk 0:02:49.2]} 14... Bxd5 {[%clk 0:02:09.6]} 15. Nxd5 {[%clk 0:02:50.1]}
15... Nc6 {[%clk 0:02:09.8]} 16. Nh2 {[%clk 0:02:27]} 16... Bg5 {[%clk
0:01:57.6]} 17. c3 {[%clk 0:02:22.7]} 17... Ne7 {[%clk 0:01:57.7]} 18. Nxe7+
{[%clk 0:02:19.9]} 18... Bxe7 {[%clk 0:01:53.8]} 19. g3 {[%clk 0:02:20.7]} 19...
d5 {[%clk 0:01:53.3]} 20. Qf3 {[%clk 0:02:19.2]} 20... d4 {[%clk 0:01:45.9]} 21.
Rac1 {[%clk 0:02:00.4]} 21... Qd7 {[%clk 0:01:42.5]} 22. c4 {[%clk 0:01:58]}
22... bxc4 {[%clk 0:01:39.1]} 23. Rxc4 {[%clk 0:01:58.9]} 23... Rab8 {[%clk
0:01:36.7]} 24. Qe2 {[%clk 0:01:57.9]} 24... Rb3 {[%clk 0:01:35.4]} 25. Nf3
{[%clk 0:01:56.1]} 25... Rfb8 {[%clk 0:01:35.4]} 26. Rc2 {[%clk 0:01:55.6]}
26... c4 {[%clk 0:01:31.8]} 27. Nxe5 {[%clk 0:01:54.7]} 27... cxd3 {[%clk
0:01:15.8]} 28. Nxd3 {[%clk 0:01:49.4]} 28... Qb5 {[%clk 0:01:07.6]} 29. Rd1
{[%clk 0:01:46]} 29... Bd6 {[%clk 0:00:27.9]} 30. Kf1 {[%clk 0:01:42.9]} 30...
Rb7 {[%clk 0:00:16.9]} 31. e5 {[%clk 0:01:40.5]} 31... Be7 {[%clk 0:00:15.8]}
32. f4 {[%clk 0:01:39.6]} 32... Rb8 {[%clk 0:00:15.8]} 33. Rdd2 {[%clk
0:01:15.8]} 33... Qd5 {[%clk 0:00:15.3]} 34. Qg2 {[%clk 0:01:03]} 34... Qb5
{[%clk 0:00:15]} 35. Qe4 {[%clk 0:01:00.8]} 35... Qa5 {[%clk 0:00:13.6]} 36.
Qxd4 {[%clk 0:00:56.9]} 36... Rd8 {[%clk 0:00:12.6]} 37. Qc4 {[%clk 0:00:55.4]}
37... Qb6 {[%clk 0:00:08.6]} 38. Nb4 {[%clk 0:00:48.2]} 38... Rxd2 {[%clk
0:00:07.4]} 39. Rxd2 {[%clk 0:00:47.1]} 39... Re3 {[%clk 0:00:07.5]} 40. Nd5
{[%clk 0:00:44.3]} 40... Rf3+ {[%clk 0:00:07.3]} 41. Ke2 {[%clk 0:00:40.6]}
41... Qf2+ {[%clk 0:00:06.8]} 42. Kd1 {[%clk 0:00:40.8]} 42... Qg1+ {[%clk
0:00:06.3]} 43. Kc2 {[%clk 0:00:40.9]} 43... Qxg3 {[%clk 0:00:06.2]} 44. Nxe7+
{[%clk 0:00:40.8]} 44... Kh7 {[%clk 0:00:06.1]} 45. Qe4+ {[%clk 0:00:40.5]}
45... g6 {[%clk 0:00:05.7]} 46. Nd5 {[%clk 0:00:39.2]} 46... Qxh3 {[%clk
0:00:03.8]} 47. Nf6+ {[%clk 0:00:37.9]} 47... Kg7 {[%clk 0:00:04.4]} 48. Qa8
{[%clk 0:00:35.2]} 48... Qe6 {[%clk 0:00:03.6]} 49. Qg8# {[%clk 0:00:34.1]} 1-0